bitfinex-derivatives/quotes_BNBF0:USTF0_20250425
["timestamp","ask_amount","ask_price","bid_price","bid_amount"]
[1745543663440,1.25637758,605.23,602.92,2.123]
[1745543664239,0.28828471,605.22,602.92,2.123]
[1745543664537,0.28828471,605.22,602.92,3.252]
[1745543665033,0.28828471,605.22,602.92,4.355]
[1745543666843,1.25637758,605.1,602.92,4.355]
[1745543667241,0.28832173,605.09,602.92,4.355]
[1745543670046,1.25637758,604.88,602.92,4.355]
[1745543671239,0.28834323,604.87,602.92,4.355]
[1745543678947,1.25637758,605.16,602.92,4.355]
[1745543680251,1.54465393,605.15,602.92,4.355]
[1745543680853,1.54465393,605.15,602.93,0.30435018]
[1745543682056,1.25637758,605.15,602.93,0.30435018]
[1745543682355,0.28827754,605.14,602.93,0.30435018]
[1745543683457,1.25637758,604.77,602.93,0.30435018]
[1745543683853,1.25637758,604.77,602.93,1.55035018]
[1745543684054,1.25637758,604.77,602.94,0.30435018]
[1745543685359,1.25637758,604.77,602.93,2.795]
[1745543685551,1.25637758,604.77,602.94,0.30435079]
[1745543685754,1.25637758,604.79,602.93,2.795]
[1745543687958,1.25637758,605.3,602.93,2.795]
[1745543688159,1.25637758,605.3,602.94,0.30431618]
[1745543688355,0.2883074,604.78,602.94,0.30431618]
[1745543688552,1.25637758,605.3,602.93,2.795]
[1745543688755,1.25637758,605.3,602.94,0.30433654]
[1745543689460,0.28823934,605.29,602.94,0.30433654]
[1745543690160,0.28823934,605.29,602.93,2.795]
[1745543690355,1.25637758,604.95,602.94,0.3043192]
[1745543692261,1.25637758,604.87,602.94,0.3043192]
[1745543694256,1.25637758,604.87,602.95,1.512]
[1745543694460,1.25637758,604.87,602.96,0.3043192]
[1745543694856,2.15313798,605.01,602.95,1.512]
[1745543695056,1.25637758,605.05,602.96,0.30429947]
[1745543695263,0.28826441,605.0,602.96,0.30429947]
[1745543696357,0.28826441,605.0,602.95,1.512]
[1745543699265,0.28826441,605.0,602.96,1.177]
[1745543699965,1.25637758,605.03,602.96,1.177]
[1745543700465,0.6087882,611.63,602.96,1.177]
[1745543700466,1.25637758,605.46,602.96,1.177]
[1745543701266,0.28820711,605.45,602.96,1.177]
[1745543703068,1.25637758,605.47,602.96,1.177]
[1745543703367,0.28820592,605.44,602.96,1.177]
[1745543706069,1.25637758,605.49,602.97,0.30422108]
[1745543707070,1.25637758,605.59,602.98,0.30421222]
[1745543707364,0.28816057,605.48,602.99,0.30421222]
[1745543707568,1.25637758,605.59,602.97,0.30421222]
[1745543708270,1.25637758,605.59,602.98,0.95]
[1745543708466,1.25637758,605.59,602.99,0.30421222]
[1745543708865,0.28815819,605.58,602.99,0.30421222]
[1745543710171,1.25637758,605.11,602.99,0.30421222]
[1745543711775,1.25637758,605.11,602.98,2.172]
[1745543712072,1.25637758,605.11,602.99,0.30427748]
[1745543712274,0.28822979,605.1,602.99,0.30427748]
[1745543713073,1.25637758,604.97,602.99,0.30427748]
[1745543713372,1.25637758,604.97,602.98,2.172]
[1745543713566,1.25637758,604.97,602.99,0.30427497]
[1745543716476,1.25637758,604.97,602.98,2.172]
[1745543716777,1.25637758,604.76,602.99,0.30429421]
[1745543719575,0.28831456,604.75,602.99,0.30429421]
[1745543720976,1.25637758,604.79,602.99,0.30429421]
[1745543721374,0.28828471,604.74,602.99,0.30429421]
[1745543722778,0.28828471,604.74,602.98,2.172]
[1745543722976,0.28828471,604.74,602.99,0.30430014]
[1745543723978,2.15313798,605.1,602.99,0.30430014]
[1745543723979,1.25637758,604.96,602.99,0.30430014]
[1745543725279,0.28824292,604.95,602.99,0.30430014]
[1745543726976,1.25637758,604.97,602.99,0.30430014]
[1745543727379,0.28825366,604.94,602.99,0.30430014]
[1745543729482,1.25637758,604.87,603.0,1.0564898]
[1745543729676,1.25637758,604.87,603.01,0.30430014]
[1745543730583,1.25637758,604.87,603.0,1.0564898]
[1745543730776,1.25637758,604.87,603.01,0.30421868]
[1745543731383,0.28822263,604.86,603.01,0.30421868]
[1745543732284,0.28822263,604.86,603.01,1.36070848]
[1745543732485,0.28822263,604.86,603.02,0.30421868]
[1745543732985,1.25637758,605.1,603.02,0.30421868]
[1745543734183,0.28817728,605.09,603.02,0.30421868]
[1745543735287,0.28817728,605.09,603.05,1.0564898]
[1745543735487,0.28817728,605.09,603.06,0.30421868]
[1745543738596,0.28817728,605.09,603.07,0.30416003]
[1745543738889,0.28817728,605.09,603.08,0.30416003]
[1745543739091,1.25637758,605.27,603.06,0.30416003]
[1745543739293,0.28815222,605.08,603.07,0.30416003]
[1745543739494,1.25637758,605.27,603.06,0.30416003]
[1745543740296,0.28814268,605.26,603.06,0.30416003]
[1745543741397,0.28814268,605.26,603.0,0.30416003]
[1745543741598,0.28814268,605.26,603.01,0.30416003]
[1745543741899,0.28814268,605.26,603.02,0.30416003]
[1745543742095,1.25637758,605.55,603.0,0.30416003]
[1745543742299,0.2881236,605.25,603.01,0.30416003]
[1745543742498,1.25637758,605.55,603.01,0.30416003]
[1745543742998,1.25637758,605.55,603.0,0.2881236]
[1745543743200,1.25637758,605.55,603.01,0.30413885]
[1745543743498,0.2881224,605.54,603.01,0.30413885]
[1745543745001,1.25637758,605.67,603.01,0.30413885]
[1745543745200,1.25637758,605.67,602.92,0.30413885]
[1745543745402,0.2881057,605.53,603.0,0.2881057]
[1745543745606,1.25637758,605.67,603.01,0.30413885]
[1745543745799,1.25637758,605.67,603.02,0.30413885]
[1745543746105,1.25637758,605.67,603.03,0.30413885]
[1745543746305,0.28811644,605.66,602.92,0.30413885]
[1745543746502,0.28811644,605.66,603.01,0.28811644]
[1745543746701,0.28811644,605.66,603.02,0.30413885]
[1745543747104,0.28811644,605.66,603.03,0.30413885]
[1745543747305,0.28811644,605.66,602.92,0.30413885]
[1745543747606,0.28811644,605.66,602.93,0.30413885]
[1745543747801,0.28811644,605.66,602.94,0.30414277]
[1745543748107,0.28811644,605.66,602.95,0.30414277]
[1745543749107,0.28811644,605.66,602.96,1.274]
[1745543749512,0.28811644,605.66,602.97,0.3041406]
[1745543750908,0.28811644,605.66,602.96,1.274]
[1745543751101,0.28811644,605.66,602.97,0.30414609]
[1745543751706,0.28811644,605.66,602.98,1.238]
[1745543751910,1.25637758,605.65,602.99,0.30414609]
[1745543752108,1.25637758,605.65,602.99,1.41014609]
[1745543752308,1.25637758,605.65,603.0,0.30414609]
[1745543752909,1.25637758,605.65,603.01,1.288]
[1745543753109,1.25637758,605.65,603.02,0.30414609]
[1745543754110,1.25637758,605.65,603.01,1.288]
[1745543754310,1.25637758,605.65,603.02,0.3041555]
[1745543754710,1.25637758,605.5,603.02,0.3041555]
[1745543755206,0.28816057,605.49,603.02,0.3041555]
[1745543757012,1.25637758,605.5,603.02,0.3041555]
[1745543757313,0.28817251,605.48,603.02,0.3041555]
[1745543757513,1.25637758,605.27,603.02,0.3041555]
[1745543758814,1.25637758,605.27,603.01,1.288]
[1745543759116,1.25637758,605.27,603.02,0.30424353]
[1745543759715,1.25637758,605.27,603.01,1.288]
[1745543760016,1.25637758,605.27,603.02,0.3042489]
[1745543760314,0.28820711,605.26,603.02,0.3042489]
[1745543760515,0.28820711,605.26,603.01,1.288]
[1745543760715,1.25637758,604.88,603.02,0.30425161]
[1745543761617,1.25637758,604.88,603.03,0.30425847]
[1745543761817,1.25637758,604.88,603.02,0.30425847]
[1745543762119,1.25637758,604.88,603.03,0.30425847]
[1745543762418,1.25637758,604.88,603.01,1.288]
[1745543762419,1.25637758,604.88,603.04,0.30425847]
[1745543762717,1.25637758,604.88,603.05,0.30425847]
[1745543762919,1.25637758,604.88,603.02,0.30425847]
[1745543763218,1.25637758,604.85,603.03,0.30426569]
[1745543763415,1.25637758,604.85,603.02,0.30426569]
[1745543764314,0.28828112,604.84,603.02,0.30426569]
[1745543766020,1.25637758,605.14,603.02,0.30426569]
[1745543766915,1.25637758,605.14,603.02,1.74826569]
[1745543767114,1.25637758,605.14,603.03,0.30426569]
[1745543767317,0.28825128,605.13,603.03,0.30426569]
[1745543769020,1.25637758,605.14,603.03,0.30426569]
[1745543769321,0.28822621,605.12,603.03,0.30426569]
[1745543772017,1.25637758,605.24,603.03,0.30426569]
[1745543772321,0.28818802,605.11,603.03,0.30426569]
[1745543772515,1.25637758,605.24,603.03,0.30426569]
[1745543773315,0.28818086,605.23,603.03,0.30426569]
[1745543776422,0.28818086,605.23,603.03,1.50726569]
[1745543776624,0.28818086,605.23,603.04,0.30426569]
[1745543777519,0.28818086,605.23,603.05,0.30412512]
[1745543777723,0.28818086,605.23,603.06,0.30412512]
[1745543778022,1.25637758,605.33,603.07,0.30412512]
[1745543778218,1.25637758,605.33,603.08,0.30412512]
[1745543778425,0.28813314,605.22,603.06,0.30412512]
[1745543778625,1.25637758,605.33,603.07,0.30412512]
[1745543778918,1.25637758,605.33,603.08,0.30412512]
[1745543779123,1.25637758,605.33,603.06,0.30412512]
[1745543779425,1.25637758,605.37,603.06,0.30412512]
[1745543780422,0.28812598,605.36,603.05,1.311]
[1745543780623,0.28812598,605.36,603.06,0.3041137]
[1745543781123,1.25637758,605.37,603.06,0.3041137]
[1745543781422,1.25637758,605.39,603.06,0.3041137]
[1745543782324,0.28813314,605.38,603.06,0.3041137]
[1745543782524,0.28813314,605.38,603.06,1.4321137]
[1745543782825,0.28813314,605.38,603.07,0.3041137]
[1745543784024,1.25637758,605.48,603.07,0.3041137]
[1745543784326,0.28811644,605.37,603.07,0.3041137]
[1745543784528,1.25637758,605.48,603.07,0.3041137]
[1745543785229,1.25637758,605.48,603.06,1.128]
[1745543785422,1.25637758,605.48,603.07,0.30412639]
[1745543786229,1.25637758,605.52,603.07,0.30412639]
[1745543786830,1.25637758,605.52,603.08,1.171]
[1745543787024,1.25637758,605.52,603.09,0.30412639]
[1745543788431,1.25637758,605.52,603.08,1.171]
[1745543788629,1.25637758,605.52,603.09,0.3040881]
[1745543789026,1.25637758,605.53,603.09,0.3040881]
[1745543789432,0.28808066,605.51,603.09,0.3040881]
[1745543790132,1.25637758,605.53,603.09,0.3040881]
[1745543791336,0.28805801,605.52,603.09,0.3040881]
[1745543793034,1.25637758,605.94,603.09,0.3040881]
[1745543793337,0.28802582,605.51,603.09,0.3040881]
[1745543793635,1.25637758,605.94,603.09,0.3040881]
[1745543794436,1.25637758,605.94,603.1,0.963]
[1745543794635,1.25637758,606.0,603.1,0.963]
[1745543794829,1.25637758,606.0,603.11,0.30406131]
[1745543795837,0.28802106,605.99,603.11,0.30406131]
[1745543796136,0.28802106,605.99,603.1,0.963]
[1745543796336,0.28802106,605.99,603.11,0.30406691]
[1745543797333,1.54439864,605.99,603.11,0.30406691]
[1745543799137,1.25637758,605.99,603.11,0.30406691]
[1745543799337,0.28802463,605.98,603.11,0.30406691]
[1745543800137,1.25637758,605.77,603.11,0.30406691]
[1745543802338,1.25637758,605.77,603.1,0.963]
[1745543802540,1.25637758,605.77,603.11,0.3040618]
[1745543802840,1.25637758,605.76,603.11,0.3040618]
[1745543803340,0.28804966,605.75,603.11,0.3040618]
[1745543805344,1.25637758,605.67,603.11,0.3040618]
[1745543806242,1.25637758,605.67,603.1,1.25104966]
[1745543806444,1.25637758,605.67,603.11,0.30405789]
[1745543807041,1.25637758,605.67,603.1,1.25104966]
[1745543807242,1.25637758,605.67,603.11,0.30405791]
[1745543807743,0.28804966,605.75,603.11,0.30405791]
[1745543808044,1.25637758,605.89,603.11,0.30405791]
[1745543808344,0.28801986,605.74,603.11,0.30405791]
[1745543808546,1.25637758,605.89,603.11,0.30405791]
[1745543809344,0.28801986,605.88,603.11,0.30405791]
[1745543810145,0.28801986,605.88,603.1,1.25101986]
[1745543810445,1.25637758,605.82,603.11,0.30405845]
[1745543811646,1.25637758,605.82,603.1,0.28802821]
[1745543811942,1.25637758,605.82,603.11,0.30405215]
[1745543812346,0.28803059,605.81,603.11,0.30405215]
[1745543812844,1.25637758,605.47,603.16,1.0564898]
[1745543813050,1.25637758,605.47,603.17,0.30405215]
[1745543813949,1.25637758,605.47,603.17,1.81905215]
[1745543814150,1.25637758,605.47,603.18,0.30405215]
[1745543814450,0.2880437,605.46,603.18,0.30405215]
[1745543814750,0.2880437,605.46,603.17,1.515]
[1745543815045,0.2880437,605.46,603.18,0.30404224]
[1745543815451,0.2880437,605.46,603.18,1.74404224]
[1745543815645,0.2880437,605.46,603.19,0.30404224]
[1745543817048,1.25637758,605.58,603.19,0.30404224]
[1745543817352,0.28802821,605.45,603.19,0.30404224]
[1745543817550,1.25637758,605.58,603.19,0.30404224]
[1745543817950,1.25637758,605.58,603.2,0.30402312]
[1745543818152,1.25637758,605.58,603.21,0.30402312]
[1745543818451,1.25637758,605.58,603.22,0.30402312]
[1745543818452,0.28802344,605.57,603.22,0.30402312]
[1745543818652,0.28802344,605.57,603.19,0.30402312]
[1745543818951,0.28802344,605.57,603.2,0.30402312]
[1745543819152,0.28802344,605.57,603.35,1.0564898]
[1745543819552,0.28802344,605.57,603.36,0.30399998]
[1745543819849,0.28802344,605.57,603.35,1.0564898]
[1745543820049,1.25637758,605.65,603.36,0.30400025]
[1745543820455,1.25637758,605.65,603.37,1.184]
[1745543820654,1.25637758,605.65,603.38,0.30400025]
[1745543820953,1.25637758,605.65,603.38,1.30000025]
[1745543821253,0.6087882,612.25,603.38,1.30000025]
[1745543821254,1.25637758,605.63,603.45,1.0564898]
[1745543821454,1.25637758,605.63,603.46,0.30400025]
[1745543822052,1.25637758,605.63,603.45,1.0564898]
[1745543823357,1.25637758,605.75,603.38,0.996]
[1745543823656,1.25637758,605.75,603.39,0.30405249]
[1745543824257,0.28799364,605.74,603.39,0.30405249]
[1745543825157,0.28799364,605.74,603.38,0.996]
[1745543825457,0.28799364,605.74,603.39,0.30406138]
[1745543825458,1.25637758,605.7,603.39,0.30406138]
[1745543826256,0.28801152,605.69,603.39,0.30406138]
[1745543826759,0.28801152,605.69,603.4,0.30406157]
[1745543826960,0.28801152,605.69,603.39,0.30406157]
[1745543827157,0.28801152,605.69,603.4,0.30406157]
[1745543827457,0.28801152,605.69,603.41,0.30406157]
[1745543827758,1.25637758,605.68,603.42,0.30406157]
[1745543827958,1.25637758,605.68,603.43,0.30406157]
[1745543828158,1.25637758,605.68,603.39,0.30406157]
[1745543828359,1.25637758,605.68,603.4,0.30406409]
[1745543828557,1.25637758,605.68,603.41,0.30406409]
[1745543828758,1.25637758,605.68,603.39,0.30406409]
[1745543828957,1.25637758,605.68,603.4,0.30406409]
[1745543829160,1.25637758,605.68,603.39,0.30406409]
[1745543829359,1.25637758,605.68,603.4,0.30406409]
[1745543829554,0.28802582,605.67,603.41,0.30406409]
[1745543829859,0.28802582,605.67,603.38,0.996]
[1745543830058,0.28802582,605.67,603.39,0.30407057]
[1745543830661,1.25637758,605.44,603.39,0.30407057]
[1745543831361,1.25637758,605.44,603.38,0.996]
[1745543831565,1.25637758,605.44,603.39,0.30409184]
[1745543832967,1.25637758,605.44,603.38,0.996]
[1745543833168,1.25637758,605.44,603.39,0.30412855]
[1745543833363,1.25637758,605.35,603.39,0.30412855]
[1745543833969,1.25637758,605.35,603.38,0.996]
[1745543834869,1.25637758,605.35,603.39,0.30413249]
[1745543835069,1.25637758,605.35,603.38,0.996]
[1745543835369,1.25637758,605.23,603.39,0.30414234]
[1745543835571,1.25637758,605.23,603.38,0.996]
[1745543837070,1.25637758,605.23,603.39,1.189]
[1745543838972,1.25637758,605.36,603.39,1.189]
[1745543839371,0.2881236,605.22,603.39,1.189]
[1745543839565,1.25637758,605.36,603.39,1.189]
[1745543840872,0.28810809,605.35,603.39,1.189]
[1745543841271,1.25637758,605.45,603.39,1.189]
[1745543842375,0.28809736,605.44,603.39,1.189]
[1745543844074,1.25637758,605.46,603.39,1.189]
[1745543844375,0.28809616,605.43,603.39,1.189]
[1745543846478,0.28809616,605.43,603.4,1.167]
[1745543847175,1.25637758,605.48,603.4,1.167]
[1745543848375,0.28810213,605.47,603.4,1.167]
[1745543849177,1.25637758,605.4,603.4,1.167]
[1745543850379,0.28811405,605.39,603.4,1.167]
[1745543851480,0.28811405,605.39,603.4,2.128]
[1745543852680,1.25637758,605.19,603.4,2.128]
[1745543853680,1.25637758,605.19,603.4,3.605]
[1745543854381,0.28814864,605.18,603.4,3.605]
[1745543855082,1.25637758,605.13,603.4,3.605]
[1745543857188,0.28814864,605.18,603.4,3.605]
[1745543864187,0.28814864,605.18,603.4,4.815]
[1745543865091,1.25637758,605.19,603.4,4.815]
[1745543865392,0.28818682,605.17,603.4,4.815]
[1745543867587,1.25637758,605.15,603.4,4.815]
[1745543870795,1.25637758,605.1,603.4,4.815]
[1745543871393,0.28823576,605.09,603.4,4.815]
[1745543874094,1.25637758,605.18,603.4,4.815]
[1745543874295,0.28823456,605.08,603.4,4.815]
[1745543874591,1.25637758,605.18,603.4,4.815]
[1745543875391,0.28824292,605.17,603.4,4.815]
[1745543876299,1.5446205,605.17,603.4,4.815]
[1745543877100,1.25637758,605.17,603.4,4.815]
[1745543877401,0.28824411,605.16,603.4,4.815]
[1745543878804,1.25637758,605.03,603.4,4.815]
[1745543880702,1.25637758,605.04,603.4,4.815]
[1745543883203,1.25637758,605.08,603.4,4.815]
[1745543885905,0.28824411,605.16,603.4,4.815]
[1745543885906,1.25637758,604.85,603.4,4.815]
[1745543886406,0.28828232,604.84,603.4,4.815]
[1745543888909,1.25637758,604.76,603.4,4.815]
[1745543893711,0.28828232,604.84,603.4,4.815]
[1745543895111,1.25637758,604.96,603.4,4.815]
[1745543895312,0.28829784,604.83,603.4,4.815]
[1745543895608,1.25637758,604.96,603.4,4.815]
[1745543896314,1.25637758,604.87,603.4,4.815]
[1745543899220,2.15313798,605.02,603.4,4.815]
[1745543899221,1.25637758,604.62,603.4,4.815]
[1745543901319,0.2883265,604.61,603.4,4.815]
[1745543904126,1.25637758,604.66,603.4,4.815]
[1745543905324,0.28832173,604.65,603.4,4.815]
[1745543907124,1.25637758,604.66,603.4,4.815]
[1745543908326,0.28834084,604.65,603.4,4.815]
[1745543908826,1.25637758,604.48,603.4,4.815]
[1745543910326,0.28836234,604.47,603.4,4.815]
[1745543913127,1.25637758,604.63,603.4,4.815]
[1745543913322,0.28832292,604.46,603.4,4.815]
[1745543913627,1.25637758,604.63,603.4,4.815]
[1745543914429,0.2883492,604.62,603.4,4.815]
[1745543916429,1.25637758,604.98,603.4,4.815]
[1745543917332,0.28831934,604.97,603.4,4.815]
[1745543919026,1.25637758,604.98,603.4,4.815]
[1745543919331,0.28831934,604.96,603.4,4.815]
[1745543919832,1.25637758,604.9,603.4,4.815]
[1745543922733,1.25637758,604.73,603.4,4.815]
[1745543924936,1.25637758,604.41,603.4,4.815]
[1745543925432,0.28840655,604.4,603.4,4.815]
[1745543927737,0.28840655,604.4,603.4,2.74246383]
[1745543927933,0.28840655,604.4,603.4,2.687]
[1745543928130,1.25637758,604.48,603.4,2.687]
[1745543928335,0.28846871,604.39,603.4,2.687]
[1745543928635,1.25637758,604.48,603.4,2.687]
[1745543929440,0.28846034,604.47,602.07,1.0564898]
[1745543929639,0.28846034,604.47,602.08,0.30468108]
[1745543930439,0.28846034,604.47,602.07,1.0564898]
[1745543930637,0.28846034,604.47,602.08,0.30468979]
[1745543931242,1.25637758,604.26,602.08,0.30468979]
[1745543931437,1.25637758,604.26,602.0,0.30468979]
[1745543931633,1.25637758,604.26,602.01,0.30468979]
[1745543931839,1.25637758,604.26,602.02,0.30468979]
[1745543933240,1.25637758,604.26,602.02,1.64968979]
[1745543933433,1.25637758,604.26,602.02,1.345]
[1745543933635,1.25637758,604.26,602.03,0.30469824]
[1745543934040,0.28846034,604.47,602.03,0.30469824]
[1745543934641,0.28846034,604.47,602.04,0.30469824]
[1745543934842,0.28846034,604.47,602.03,0.30469824]
[1745543935042,0.28846034,604.47,602.04,0.30469507]
[1745543935242,0.28846034,604.47,602.05,0.30469507]
[1745543935442,0.28846034,604.47,602.03,0.30469507]
[1745543935637,0.28846034,604.47,602.06,0.30469507]
[1745543935838,0.28846034,604.47,602.07,0.30469507]
[1745543936042,0.28846034,604.47,602.03,0.30469507]
[1745543936242,0.28846034,604.47,602.02,1.345]
[1745543936243,1.25637758,604.26,602.04,0.30469507]
[1745543936542,1.25637758,604.26,602.05,0.30469507]
[1745543936744,1.25637758,604.26,602.06,0.3046999]
[1745543936944,1.25637758,604.26,602.03,0.3046999]
[1745543937149,1.25637758,604.26,602.04,0.3046999]
[1745543937348,0.28866612,604.25,602.03,0.3046999]
[1745543937543,0.28866612,604.25,602.04,0.3046999]
[1745543937740,0.28866612,604.25,602.05,0.3046999]
[1745543938044,0.28866612,604.25,602.06,0.3046999]
[1745543938245,0.28866612,604.25,602.07,0.30469962]
[1745543938441,0.28866612,604.25,602.08,0.30469962]
[1745543938646,0.28866612,604.25,602.09,0.30469962]
[1745543938842,0.28866612,604.25,602.1,0.30469962]
[1745543939048,0.28866612,604.25,602.11,0.30469962]
[1745543939247,0.28866612,604.25,602.12,0.30469962]
[1745543939443,0.28866612,604.25,602.03,0.30469962]
[1745543939647,0.28866612,604.25,602.04,0.30469962]
[1745543939849,0.28866612,604.25,602.03,0.30469962]
[1745543940050,0.28866612,604.25,602.02,1.345]
[1745543940051,0.28866612,604.25,602.04,0.30469962]
[1745543940349,1.25637758,604.35,602.05,0.30469962]
[1745543940548,1.25637758,604.35,602.03,0.30469962]
[1745543940848,1.25637758,604.35,602.04,0.30469962]
[1745543941049,1.25637758,604.35,602.03,0.30469962]
[1745543941250,1.25637758,604.35,602.04,0.30469962]
[1745543941452,0.28864816,604.34,602.05,0.30469962]
[1745543941650,0.28864816,604.34,602.06,0.30469962]
[1745543941951,0.28864816,604.34,602.07,0.30469962]
[1745543942145,0.28864816,604.34,602.03,0.30469962]
[1745543942446,0.28864816,604.34,602.02,1.345]
[1745543942652,0.28864816,604.34,602.03,0.30469462]
[1745543943152,1.25637758,604.35,602.03,0.30469462]
[1745543943954,1.25637758,605.05,602.02,1.345]
[1745543944249,1.25637758,605.05,602.03,0.30470712]
[1745543944455,0.28857157,605.04,602.03,0.30470712]
[1745543945454,0.28857157,605.04,602.02,1.345]
[1745543945648,0.28857157,605.04,602.03,0.30469608]
[1745543946153,1.25637758,605.05,602.03,0.30469608]
[1745543946656,1.25637758,605.16,602.03,0.30469608]
[1745543947154,1.25637758,605.16,602.04,0.30469795]
[1745543947350,0.28854645,605.15,602.03,0.30469795]
[1745543947555,0.28854645,605.15,602.04,0.30469795]
[1745543947758,0.28854645,605.15,602.03,0.30469795]
[1745543948455,0.28854645,605.15,602.02,1.345]
[1745543948661,1.25637758,605.09,602.03,0.30470693]
[1745543949456,0.28858832,605.08,602.03,0.30470693]
[1745543950056,0.28858832,605.08,602.03,1.64370693]
[1745543950257,0.28858832,605.08,602.04,0.30470693]
[1745543950758,1.25637758,604.38,602.04,0.30470693]
[1745543953357,0.28867211,604.37,602.04,0.30470693]
[1745543953552,1.25637758,604.08,602.04,0.30470693]
[1745543954558,1.25637758,604.08,602.03,1.339]
[1745543954753,1.25637758,604.08,602.04,0.30470941]
[1745543955451,0.28866732,604.07,602.04,0.30470941]
[1745543958157,1.25637758,604.15,602.04,0.30470941]
[1745543958558,1.25637758,604.15,602.04,1.47670941]
[1745543958857,1.25637758,604.15,602.05,0.30470941]
[1745543959154,1.25637758,604.15,602.04,1.172]
[1745543959361,1.25637758,604.15,602.05,0.30465983]
[1745543959556,0.28865535,604.14,602.05,0.30465983]
[1745543961065,0.28865535,604.14,602.06,0.30465983]
[1745543961263,1.25637758,604.44,602.07,0.30465983]
[1745543961462,1.25637758,604.44,602.08,0.30465983]
[1745543961658,1.25637758,604.4,602.16,1.0564898]
[1745543961860,1.25637758,604.4,602.17,0.30465983]
[1745543962365,0.2886326,604.39,602.17,0.30465983]
[1745543963567,1.25637758,604.14,602.21,1.0564898]
[1745543964063,1.25637758,604.14,602.22,0.30471036]
[1745543964569,1.25637758,604.14,602.23,1.044]
[1745543964767,1.25637758,604.14,602.24,0.30471036]
[1745543965362,0.28865535,604.13,602.23,1.044]
[1745543965563,0.28865535,604.13,602.24,0.30470718]
[1745543967071,1.25637758,603.97,602.25,1.0564898]
[1745543967267,1.25637758,603.97,602.26,0.30470718]
[1745543968369,0.28869486,603.96,602.25,1.0564898]
[1745543968568,0.28869486,603.96,602.26,0.30472421]
[1745543968766,0.28869486,603.96,602.27,0.30472421]
[1745543968971,0.28869486,603.96,602.23,1.044]
[1745543969272,0.28869486,603.96,602.24,0.30472241]
[1745543969971,0.28869486,603.96,602.23,1.044]
[1745543970172,1.25637758,604.13,602.24,0.30472938]
[1745543970364,0.28867809,603.95,602.24,0.30472938]
[1745543970569,0.28867809,603.95,602.25,1.467]
[1745543970780,1.25637758,604.13,602.25,1.467]
[1745543970971,1.25637758,604.13,602.26,0.30472938]
[1745543971468,0.2886757,604.12,602.25,1.467]
[1745543971666,0.2886757,604.12,602.26,0.30472241]
[1745543972373,0.2886757,604.12,602.25,1.467]
[1745543976577,0.2886757,604.12,602.26,1.011]
[1745543983892,1.25637758,603.7,602.26,1.011]
[1745543984690,0.28880028,603.69,602.26,1.011]
[1745543985290,1.25637758,603.7,602.27,1.033]
[1745543986586,0.28880627,603.69,602.27,1.033]
[1745543988089,1.25637758,603.83,602.27,1.033]
[1745543988392,0.28877391,603.68,602.27,1.033]
[1745543988793,1.25637758,603.83,602.27,1.033]
[1745543989391,0.28877391,603.82,602.27,1.033]
[1745543991191,1.25637758,604.32,602.27,1.033]
[1745543991396,0.28871522,603.81,602.27,1.033]
[1745543991697,1.25637758,604.32,602.27,1.033]
[1745543992198,1.25637758,604.35,602.27,1.033]
[1745543992396,0.28871522,604.31,602.27,1.033]
[1745543994199,1.25637758,604.35,602.27,1.033]
[1745543994599,1.25637758,604.36,602.27,1.033]
[1745543995499,0.28867929,604.35,602.27,1.033]
[1745543997295,1.25637758,604.38,602.27,1.033]
[1745543997494,0.28867929,604.34,602.27,1.033]
[1745543999998,1.25637758,604.19,602.27,1.033]
[1745544000400,0.28868528,604.18,602.27,1.033]
[1745544001803,1.25637758,604.19,602.27,1.033]
[1745544001997,0.28868528,604.17,602.27,1.033]
[1745544002706,1.25637758,603.84,602.27,2.285]
[1745544004408,0.28873678,603.83,602.27,2.285]
[1745544011415,0.28873678,603.83,602.28,0.30475732]
[1745544012215,1.25637758,604.07,602.28,0.30475732]
[1745544012408,1.25637758,604.07,602.27,1.252]
[1745544013415,1.25637758,603.92,602.27,1.252]
[1745544013811,1.25637758,603.92,602.24,1.489]
[1745544014215,1.25637758,603.92,601.79,1.0564898]
[1745544014516,1.25637758,603.92,601.8,0.30483075]
[1745544015019,1.25637758,603.92,601.8,1.70683075]
[1745544015211,1.25637758,603.92,601.81,0.30483075]
[1745544015615,1.25637758,603.9,601.81,0.30483075]
[1745544015912,1.25637758,603.9,601.8,1.402]
[1745544016111,1.25637758,603.9,601.81,0.30482465]
[1745544016512,0.28879069,603.89,601.81,0.30482465]
[1745544018213,1.25637758,603.9,601.81,0.30482465]
[1745544018416,0.28881705,603.88,601.8,1.402]
[1745544018719,1.54519463,603.88,601.8,1.402]
[1745544021113,0.28881705,603.88,601.8,1.402]